bitfinex/quotes_BTCUSD_20220731
["timestamp","ask_amount","ask_price","bid_price","bid_amount"]
[1659247598697,0.59603039,23727.0,23726.0,0.17714946]
[1659247599127,0.29164939,23727.0,23726.0,0.17714946]
[1659247599456,0.29164939,23727.0,23726.0,0.09814946]
[1659247599910,0.59603039,23727.0,23726.0,0.09814946]
[1659247600271,0.61103499,23727.0,23726.0,0.09814946]
[1659247600501,0.30665399,23727.0,23726.0,0.09814946]
[1659247601238,0.29164939,23727.0,23726.0,0.09814946]
[1659247601463,0.59603039,23727.0,23726.0,0.09814946]
[1659247602042,0.29164939,23727.0,23726.0,0.09814946]
[1659247602216,0.30665399,23727.0,23726.0,0.09814946]
[1659247602467,0.59603039,23727.0,23726.0,0.09814946]
[1659247602700,0.59603039,23727.0,23723.0,0.31262864]
[1659247602701,0.05,23724.0,23719.0,0.316073]
[1659247602925,0.05,23720.0,23719.0,0.210718]
[1659247603316,0.05,23720.0,23716.0,0.22308356]
[1659247603317,0.0150046,23720.0,23716.0,0.22308356]
[1659247603555,0.0150046,23720.0,23719.0,0.031]
[1659247604666,0.0150046,23720.0,23716.0,0.70725733]
[1659247604667,0.3193856,23720.0,23716.0,0.70725733]
[1659247604916,0.0150046,23720.0,23716.0,0.70725733]
[1659247605136,0.0150046,23720.0,23716.0,0.40725733]
[1659247605360,0.0150046,23720.0,23717.0,0.02162287]
[1659247606596,0.40725733,23723.0,23717.0,0.02162287]
[1659247607291,0.304381,23722.0,23717.0,0.02162287]
[1659247607548,0.40725733,23722.0,23715.0,0.3]
[1659247607738,0.40725733,23722.0,23717.0,0.3]
[1659247607984,0.40725733,23722.0,23715.0,0.70725733]
[1659247608211,0.40725733,23722.0,23716.0,0.3]
[1659247613681,0.40718437,23722.0,23716.0,0.3]
[1659247614088,0.40725733,23721.0,23716.0,0.3]
[1659247615219,0.40725733,23721.0,23715.0,0.3]
[1659247615999,0.40725733,23721.0,23720.0,0.01]
[1659247616239,0.72664293,23721.0,23720.0,0.01]
[1659247619918,0.72664293,23721.0,23713.0,0.03163]
[1659247620322,0.4512346,23721.0,23720.0,0.01]
[1659247620693,0.86287293,23721.0,23720.0,0.01]
[1659247621125,1.16287293,23721.0,23720.0,0.01]
[1659247622054,0.86287293,23721.0,23720.0,0.01]
[1659247623447,1.98217293,23721.0,23720.0,0.01]
[1659247624344,1.68217293,23721.0,23720.0,0.01]
[1659247626436,0.05285,23720.0,23713.0,0.3]
[1659247626674,1.24156193,23721.0,23713.0,0.3]
[1659247626675,0.40725733,23719.0,23713.0,0.3]
[1659247627137,0.45725733,23719.0,23713.0,0.3]
[1659247627367,0.40725733,23718.0,23713.0,0.378]
[1659247628737,0.40725733,23718.0,23713.0,0.3]
[1659247629183,0.40725733,23718.0,23714.0,0.304348]
[1659247629411,0.40725733,23719.0,23715.0,0.32162287]
[1659247629884,0.40725733,23719.0,23716.0,0.3]
[1659247630562,0.40725733,23719.0,23715.0,0.32162287]
[1659247631000,0.40725733,23719.0,23716.0,0.3]
[1659247631265,0.40725733,23719.0,23715.0,0.02162287]
[1659247631455,0.40725733,23719.0,23715.0,0.32262287]
[1659247632819,0.0150046,23718.0,23715.0,0.32162287]
[1659247633040,0.0150046,23718.0,23715.0,0.3]
[1659247633262,0.0150046,23718.0,23714.0,0.510756]
[1659247633520,0.0150046,23718.0,23715.0,0.32697087]
[1659247633743,0.40725733,23719.0,23716.0,0.304348]
[1659247633962,0.40725733,23719.0,23715.0,0.02262287]
[1659247634191,0.42226193,23719.0,23715.0,0.02262287]
[1659247635329,0.42226193,23719.0,23715.0,0.02162287]
[1659247635566,0.42226193,23719.0,23715.0,0.02262287]
[1659247635778,0.40725733,23719.0,23715.0,0.02262287]
[1659247636060,0.3,23721.0,23715.0,0.37697087]
[1659247636280,0.40725733,23720.0,23716.0,0.26078396]
[1659247636504,0.3,23721.0,23719.0,0.05004896]
[1659247636737,0.5548,23722.0,23720.0,0.02162287]
[1659247636964,0.5548,23722.0,23717.0,0.3]
[1659247638701,0.5548,23722.0,23716.0,0.61799233]
[1659247639157,0.304348,23721.0,23716.0,0.61799233]
[1659247639380,0.5548,23722.0,23716.0,0.61799233]
[1659247639615,0.304348,23721.0,23716.0,0.61799233]
[1659247639813,0.5548,23722.0,23716.0,0.61799233]
[1659247642160,0.5548,23722.0,23717.0,0.3]
[1659247642356,0.5548,23722.0,23716.0,0.61799233]
[1659247642357,0.3,23721.0,23716.0,0.61799233]
[1659247642590,0.5548,23722.0,23716.0,0.61799233]
[1659247643041,0.40725733,23721.0,23716.0,0.210735]
[1659247643703,0.304348,23720.0,23716.0,0.210735]
[1659247643944,0.40725733,23721.0,23716.0,0.210735]
[1659247644161,0.70725733,23721.0,23716.0,0.210735]
[1659247644769,0.304348,23720.0,23716.0,0.210735]
[1659247644929,0.00195431,23719.0,23716.0,0.210735]
[1659247645128,0.40725733,23721.0,23716.0,0.23235787]
[1659247645328,0.40725733,23721.0,23716.0,0.27735787]
[1659247645329,0.70725733,23721.0,23716.0,0.27735787]
[1659247645770,0.304348,23720.0,23716.0,0.27735787]
[1659247645969,0.70725733,23721.0,23716.0,0.27735787]
[1659247647089,0.01305029,23719.0,23716.0,0.27735787]
[1659247647340,0.0150046,23719.0,23716.0,0.23235787]
[1659247648211,0.70725733,23721.0,23716.0,0.23235787]
[1659247648433,0.40725733,23721.0,23716.0,0.23235787]
[1659247648684,0.3952,23724.0,23716.0,0.6396152]
[1659247648910,0.70725733,23723.0,23717.0,0.604348]
[1659247649130,0.40725733,23723.0,23718.0,0.354348]
[1659247649358,0.40725733,23723.0,23719.0,0.3]
[1659247649585,0.40725733,23723.0,23717.0,0.3]
[1659247649797,0.40725733,23723.0,23717.0,0.6]
[1659247650228,0.40725733,23723.0,23717.0,0.65]
[1659247650484,0.40725733,23723.0,23718.0,0.210716]
[1659247650714,0.91504939,23727.0,23718.0,0.210716]
[1659247650715,0.40725733,23725.0,23719.0,0.654348]
[1659247650942,0.40717874,23725.0,23724.0,0.05004896]
[1659247651164,0.29164939,23727.0,23724.0,0.07167183]
[1659247651165,0.40725733,23726.0,23724.0,0.07167183]
[1659247651392,0.69890672,23727.0,23725.0,0.05004896]
[1659247651843,0.69890672,23727.0,23726.0,0.05004896]
[1659247652055,0.29164939,23727.0,23726.0,0.26069896]
[1659247652282,0.29164939,23727.0,23726.0,0.35439696]
[1659247652558,0.29164939,23727.0,23726.0,0.65439696]
[1659247653018,0.29164939,23727.0,23726.0,0.35439696]
[1659247653238,0.29164939,23727.0,23726.0,0.05004896]
[1659247653451,0.29164939,23727.0,23726.0,0.059]
[1659247653668,0.29164939,23727.0,23726.0,0.10904896]
[1659247654793,0.29164939,23727.0,23726.0,0.05004896]
[1659247655443,0.29164939,23727.0,23726.0,0.10904896]
[1659247655668,0.30665399,23727.0,23726.0,0.059]
[1659247655905,0.29164939,23727.0,23726.0,0.059]
[1659247656863,0.29164939,23727.0,23724.0,0.02162287]
[1659247657536,0.29164939,23727.0,23726.0,0.08]
[1659247658704,0.29164939,23727.0,23724.0,0.02162287]
[1659247658989,0.29164939,23727.0,23724.0,0.32162287]
[1659247659871,0.29164939,23727.0,23726.0,0.05004896]
[1659247660103,0.29164939,23727.0,23724.0,0.02162287]
[1659247664898,0.69890672,23727.0,23724.0,0.02162287]
[1659247666800,0.71391132,23727.0,23724.0,0.02162287]
[1659247667014,0.69890672,23727.0,23724.0,0.02162287]
[1659247667690,0.0150046,23726.0,23722.0,0.210678]
[1659247667951,0.69890672,23727.0,23723.0,0.02162287]
[1659247669298,0.69890672,23727.0,23724.0,0.304348]
[1659247669518,0.29164939,23727.0,23723.0,0.02162287]
[1659247669789,0.29164939,23727.0,23724.0,0.304348]
[1659247669984,0.29164939,23727.0,23723.0,0.02162287]
[1659247670215,0.29164939,23727.0,23723.0,0.32597087]
[1659247670436,0.29164939,23727.0,23724.0,0.604348]
[1659247670655,0.29164939,23727.0,23723.0,0.07162287]
[1659247670866,0.29164939,23727.0,23723.0,0.02162287]
[1659247671102,0.29164939,23727.0,23724.0,0.304348]
[1659247671336,0.29164939,23727.0,23723.0,0.02162287]
[1659247671568,0.29164939,23727.0,23723.0,0.32597087]
[1659247671893,0.29164939,23727.0,23724.0,0.604348]
[1659247671957,0.2915669,23727.0,23724.0,0.604348]
[1659247672302,0.2915669,23727.0,23723.0,0.02162287]
[1659247672523,0.2915669,23727.0,23724.0,0.304348]
[1659247672762,0.2915669,23727.0,23723.0,0.02162287]
[1659247672994,0.2915669,23727.0,23723.0,0.32597087]
[1659247673234,0.2915669,23727.0,23723.0,0.03409743]
[1659247673717,0.2915669,23727.0,23723.0,0.02162287]
[1659247675094,0.2915669,23727.0,23724.0,0.304348]
[1659247675328,0.2915669,23727.0,23724.0,0.29058401]
[1659247675565,0.2915669,23727.0,23724.0,0.3]
[1659247676001,0.2915669,23727.0,23723.0,0.02162287]
[1659247676236,0.2915669,23727.0,23723.0,0.32162287]
[1659247676738,0.2915669,23727.0,23724.0,0.304348]
[1659247676976,0.2915669,23727.0,23723.0,0.32162287]
[1659247678239,0.2915669,23727.0,23723.0,0.02162287]
[1659247678469,0.2915669,23727.0,23724.0,0.604348]
[1659247678711,0.2915669,23727.0,23723.0,0.02162287]
[1659247678943,0.2915669,23727.0,23724.0,0.304348]
[1659247679178,0.2915669,23727.0,23726.0,0.05004896]
[1659247679648,0.2915669,23727.0,23723.0,0.35]
[1659247679863,0.2915669,23727.0,23724.0,0.604348]
[1659247680098,0.2915669,23727.0,23726.0,0.05004896]
[1659247680326,0.2915669,23727.0,23726.0,0.35439696]
[1659247680551,0.2915669,23727.0,23726.0,0.05004896]
[1659247680777,0.2915669,23727.0,23726.0,0.07167183]
[1659247683582,0.2915669,23727.0,23722.0,0.52344111]
[1659247683803,0.2915669,23727.0,23723.0,0.304348]
[1659247684025,0.2915669,23727.0,23724.0,0.604348]
[1659247684252,0.2915669,23727.0,23724.0,0.3]
[1659247684476,0.2915669,23727.0,23725.0,0.304348]
[1659247684690,0.2915669,23727.0,23726.0,0.07167183]
[1659247684913,0.2915669,23727.0,23726.0,0.05004896]
[1659247685137,0.2915669,23727.0,23723.0,0.4]
[1659247685401,0.2915669,23727.0,23724.0,0.304348]
[1659247685625,0.2915669,23727.0,23725.0,0.3]
[1659247685865,0.2915669,23727.0,23726.0,0.37601983]
[1659247686090,0.2915669,23727.0,23726.0,0.05004896]
[1659247686321,0.2915669,23727.0,23723.0,0.3]
[1659247686562,0.2915669,23727.0,23724.0,0.304348]
[1659247686789,0.2915669,23727.0,23723.0,0.4]
[1659247687008,0.2915669,23727.0,23724.0,0.304348]
[1659247687285,0.2915669,23727.0,23726.0,0.05004896]
[1659247687730,0.2915669,23727.0,23723.0,0.4]
[1659247687957,0.2915669,23727.0,23724.0,0.32597087]
[1659247688188,0.2915669,23727.0,23726.0,0.05004896]
[1659247689544,0.2915669,23727.0,23724.0,0.02162287]
[1659247689808,0.2915669,23727.0,23725.0,0.304348]
[1659247690031,0.2915669,23727.0,23724.0,0.02162287]
[1659247690258,0.2915669,23727.0,23724.0,0.32597087]
[1659247690477,0.2915669,23727.0,23725.0,0.304348]
[1659247690703,0.2915669,23727.0,23726.0,0.05004896]
[1659247691206,0.2915669,23727.0,23725.0,0.00116428]
[1659247692981,0.75725733,23726.0,23722.0,0.210678]
[1659247693220,0.71160533,23725.0,23716.0,0.01242802]
[1659247693392,0.76014533,23724.0,23716.0,0.40725733]
[1659247693602,0.66150133,23723.0,23714.0,0.40725733]
[1659247693821,1.30305733,23722.0,23714.0,0.40725733]
[1659247694014,1.16157433,23721.0,23712.0,0.40725733]
[1659247694241,0.70725733,23720.0,23707.0,0.5779]
[1659247694579,0.77335733,23719.0,23708.0,0.42139877]
[1659247694806,1.30305733,23718.0,23708.0,0.40725733]
[1659247695036,0.40725733,23717.0,23708.0,0.40725733]
[1659247695273,0.3,23716.0,23708.0,0.40725733]
[1659247695504,0.40725733,23715.0,23708.0,0.40725733]
[1659247696415,0.40725733,23715.0,23707.0,1.20860258]
[1659247696887,0.40725733,23715.0,23708.0,0.304317]
[1659247697123,0.40725733,23715.0,23707.0,1.20860258]
[1659247697344,0.40725733,23715.0,23708.0,0.304317]
[1659247697658,0.48625733,23715.0,23707.0,1.20860258]
[1659247697884,0.40725733,23714.0,23708.0,0.304317]
[1659247698116,0.40725733,23714.0,23709.0,0.304317]
[1659247698347,0.40725733,23714.0,23707.0,1.20860258]
[1659247698570,0.40725733,23714.0,23708.0,0.604317]
[1659247698830,0.3,23717.0,23709.0,0.92236133]
[1659247699057,0.70725733,23717.0,23710.0,0.604317]
[1659247699274,0.70725733,23717.0,23710.0,0.3]
[1659247699502,0.78625733,23717.0,23711.0,0.304317]
[1659247699722,0.78625733,23717.0,23712.0,0.3]
[1659247699938,0.78625733,23717.0,23709.0,0.71804433]
[1659247700162,0.78625733,23717.0,23710.0,0.3]
[1659247700390,0.78625733,23717.0,23711.0,0.354317]
[1659247700623,0.78625733,23717.0,23712.0,0.604317]
[1659247700880,0.70725733,23717.0,23713.0,0.3]
[1659247701108,0.0150046,23716.0,23710.0,0.3]
[1659247701337,0.0150046,23716.0,23711.0,0.304317]
[1659247701543,0.0150046,23716.0,23712.0,0.604317]
[1659247701760,0.0150046,23716.0,23710.0,0.3]
[1659247701985,0.0150046,23716.0,23711.0,0.354317]
[1659247702219,0.0150046,23716.0,23712.0,0.604317]
[1659247702459,0.0150046,23716.0,23712.0,0.3]
[1659247702957,0.0150046,23716.0,23713.0,0.304317]
[1659247703200,0.0150046,23716.0,23713.0,0.02271911]
[1659247703434,0.0930046,23716.0,23710.0,0.3]
[1659247703666,0.0930046,23716.0,23711.0,0.304317]
[1659247703888,0.0930046,23716.0,23712.0,0.604317]
[1659247704115,0.0930046,23716.0,23713.0,0.304317]
[1659247704333,0.0930046,23716.0,23710.0,0.3]
[1659247704566,0.0930046,23716.0,23711.0,0.304317]
[1659247704824,0.3,23718.0,23712.0,0.304317]
[1659247705067,0.96638114,23722.0,23713.0,0.632157]
[1659247705338,0.96495733,23722.0,23717.0,0.05004896]
[1659247705577,0.079,23718.0,23717.0,0.05004896]
[1659247705809,0.079,23718.0,23717.0,0.37598883]
[1659247706737,0.5577,23722.0,23717.0,0.37598883]
[1659247706874,0.5577,23722.0,23717.0,0.07167183]
[1659247707306,0.5957,23722.0,23717.0,0.07167183]
[1659247708371,0.70725733,23721.0,23714.0,1.00725733]
[1659247708632,0.70725733,23721.0,23714.0,1.05725733]
[1659247709089,0.70725733,23721.0,23714.0,0.75725733]
[1659247709305,0.70725733,23721.0,23715.0,0.304317]
[1659247709511,0.74725733,23721.0,23716.0,0.604317]
[1659247709833,0.74725733,23721.0,23714.0,1.1199633]
[1659247710050,0.44725733,23721.0,23715.0,0.35436596]
[1659247710300,0.44725733,23721.0,23716.0,0.3]
[1659247710545,0.74725733,23721.0,23716.0,0.3]
[1659247710775,0.70725733,23721.0,23716.0,0.3]
[1659247711335,0.74725733,23721.0,23715.0,0.35004896]
[1659247712560,0.20725733,23720.0,23715.0,0.3]
[1659247712765,0.20725733,23720.0,23716.0,0.304317]
[1659247713045,0.20725733,23720.0,23717.0,0.00046373]
[1659247713242,0.0150046,23719.0,23717.0,0.00046373]
[1659247713486,0.25925733,23720.0,23717.0,0.00046373]
[1659247713967,0.25925733,23720.0,23719.0,0.65004896]
[1659247713968,0.052,23720.0,23719.0,0.65004896]
[1659247714202,0.052,23720.0,23719.0,1.91285725]
[1659247714444,0.052,23720.0,23719.0,2.21285725]
[1659247714690,0.8947669,23727.0,23719.0,1.61285725]
[1659247714903,1.30202423,23727.0,23720.0,1.00725733]
[1659247715380,0.69882423,23727.0,23720.0,1.05725733]
[1659247715612,0.69882423,23727.0,23721.0,0.71157433]
[1659247715613,0.3695669,23727.0,23721.0,0.71157433]
[1659247715835,0.3695669,23727.0,23722.0,1.27224633]
[1659247716062,0.3695669,23727.0,23722.0,0.96792933]
[1659247716323,0.3695669,23727.0,23723.0,0.354317]
[1659247716550,0.3695669,23727.0,23724.0,0.32162287]
[1659247716776,0.2915669,23727.0,23724.0,0.02162287]
[1659247717464,0.3705669,23727.0,23724.0,0.02162287]
[1659247717694,0.0150046,23726.0,23724.0,0.02162287]
[1659247717920,0.3705669,23727.0,23724.0,0.02162287]
[1659247718186,0.3705669,23727.0,23722.0,1.21792933]
[1659247718629,0.3705669,23727.0,23722.0,1.26792933]
[1659247718871,0.2915669,23727.0,23722.0,1.26792933]
[1659247719551,0.3485669,23727.0,23722.0,1.26792933]
[1659247719770,0.3485669,23727.0,23722.0,1.31792933]
[1659247720235,0.3485669,23727.0,23722.0,1.26792933]
[1659247720987,0.2915669,23727.0,23722.0,0.26792933]
[1659247721446,0.3485669,23727.0,23722.0,0.52860133]
[1659247722338,0.3485669,23727.0,23722.0,0.93585866]
[1659247722554,0.3485669,23727.0,23723.0,0.604317]
[1659247722781,0.0150046,23726.0,23723.0,0.3]
[1659247723034,0.0150046,23726.0,23722.0,0.210672]
[1659247723304,0.0150046,23726.0,23721.0,0.5831]
[1659247723526,0.0450046,23726.0,23723.0,0.076]
[1659247724697,0.0150046,23726.0,23721.0,0.40725733]
[1659247724923,0.42226193,23726.0,23720.0,0.61238216]
[1659247725152,0.42226193,23726.0,23720.0,0.31238216]
[1659247725400,0.50126193,23726.0,23720.0,0.31238216]
[1659247726587,0.50126193,23726.0,23720.0,0.3]
[1659247726820,0.42226193,23726.0,23720.0,0.3]
[1659247727972,0.40725733,23725.0,23720.0,0.3]
[1659247728682,0.40725733,23725.0,23718.0,0.810708]
[1659247729139,0.40725733,23725.0,23719.0,0.304317]
[1659247729364,0.3,23724.0,23718.0,0.510708]
[1659247729653,0.40725733,23723.0,23719.0,0.304317]
[1659247729878,0.40725733,23723.0,23720.0,0.32657185]
[1659247730108,0.70725733,23726.0,23720.0,0.61715341]
[1659247730327,0.78625733,23726.0,23720.0,0.31283641]
[1659247730547,0.78625733,23726.0,23720.0,0.02225485]
[1659247730764,0.067,23723.0,23720.0,0.02225485]
[1659247730999,0.067,23723.0,23720.0,0.32657185]
[1659247731222,0.067,23723.0,23721.0,0.604317]
[1659247731451,0.067,23723.0,23722.0,0.304317]
[1659247731696,0.70725733,23726.0,23721.0,0.05]
[1659247731932,0.70725733,23726.0,23720.0,0.02225485]
[1659247732146,0.70725733,23726.0,23720.0,0.07225485]
[1659247732602,0.70725733,23726.0,23720.0,0.02225485]
[1659247732842,0.78625733,23726.0,23720.0,0.02225485]
[1659247733074,0.78625733,23726.0,23719.0,0.3]
[1659247733302,0.78625733,23726.0,23719.0,0.05]
[1659247733529,0.78625733,23726.0,23718.0,0.55814276]
[1659247733804,0.78625733,23726.0,23718.0,0.96282949]
[1659247734052,0.78625733,23726.0,23719.0,0.05]
[1659247734274,0.70725733,23726.0,23719.0,0.05]
[1659247734506,0.78625733,23726.0,23719.0,0.05]
[1659247735677,0.70725733,23726.0,23719.0,0.05]
[1659247736387,0.78625733,23726.0,23719.0,0.04989855]
[1659247737785,0.70725733,23726.0,23719.0,0.04989855]
[1659247738002,0.40725733,23725.0,23718.0,0.96282949]
[1659247738892,0.40725733,23725.0,23719.0,0.05]
[1659247740272,0.70725733,23725.0,23718.0,0.96282949]
[1659247740491,1.29195733,23725.0,23718.0,0.96282949]
[1659247740726,1.29195733,23725.0,23719.0,0.354317]
[1659247740956,1.29195733,23725.0,23720.0,0.3]
[1659247741164,1.29195733,23725.0,23719.0,0.05]
[1659247741854,1.29195733,23725.0,23718.0,0.96282949]
[1659247742321,1.29195733,23725.0,23718.0,0.91796533]
[1659247742542,1.29195733,23725.0,23718.0,0.96796533]
[1659247742765,1.37095733,23725.0,23719.0,0.304317]
[1659247742999,1.37095733,23725.0,23718.0,0.91796533]
[1659247743254,1.37095733,23725.0,23719.0,0.354317]
[1659247743473,1.37095733,23725.0,23720.0,0.604317]
[1659247743669,1.37095733,23725.0,23720.0,0.05]
[1659247744163,1.37095733,23725.0,23719.0,0.4]
[1659247744164,1.29195733,23725.0,23719.0,0.4]
[1659247744391,1.29195733,23725.0,23720.0,0.304317]
[1659247744584,1.29195733,23725.0,23719.0,0.3]
[1659247744832,1.29195733,23725.0,23719.0,0.35]
[1659247745028,1.29195733,23725.0,23719.0,0.4]
[1659247745285,1.29195733,23725.0,23720.0,0.304317]
[1659247745508,0.99195733,23725.0,23719.0,0.4]
[1659247745737,1.07095733,23725.0,23720.0,0.304317]
[1659247745927,1.07095733,23725.0,23721.0,0.3]
[1659247746143,0.0150046,23724.0,23719.0,0.4]
[1659247746364,0.0150046,23724.0,23720.0,0.326317]
[1659247746590,0.0150046,23724.0,23721.0,0.32663113]
[1659247746812,1.14795733,23725.0,23721.0,0.02231413]
[1659247747040,0.99195733,23725.0,23721.0,0.02231413]
[1659247747239,0.0150046,23724.0,23721.0,0.02231413]
[1659247747824,0.0150046,23724.0,23721.0,0.05731413]
[1659247747976,0.0150046,23724.0,23722.0,0.304317]
[1659247748179,0.40725733,23725.0,23721.0,0.05731413]
[1659247748902,0.0150046,23724.0,23721.0,0.05731413]
[1659247749111,0.40725733,23725.0,23721.0,0.02231413]
[1659247749739,0.48425733,23725.0,23721.0,0.04431413]
[1659247751552,0.40725733,23725.0,23721.0,0.02231413]
[1659247751765,0.0150046,23724.0,23721.0,0.34863113]
[1659247751977,0.48425733,23725.0,23721.0,0.34863113]
[1659247752185,0.48425733,23725.0,23721.0,0.022]
[1659247753084,0.40725733,23725.0,23720.0,0.01262613]
[1659247753471,0.40725733,23725.0,23719.0,0.4]
[1659247753709,0.40725733,23725.0,23720.0,0.304317]
[1659247753964,0.48425733,23725.0,23720.0,0.326317]
[1659247754209,0.48425733,23725.0,23720.0,0.376317]
[1659247754438,0.48425733,23725.0,23722.0,0.304317]
[1659247754676,0.0150046,23724.0,23720.0,0.022]
[1659247754868,0.0150046,23724.0,23721.0,0.304317]
[1659247755124,0.0150046,23724.0,23720.0,0.022]
[1659247755325,0.40725733,23725.0,23721.0,0.304317]
[1659247755554,0.40725733,23725.0,23720.0,0.604317]
[1659247755555,0.40725733,23725.0,23722.0,0.02162287]
[1659247755760,0.0150046,23724.0,23720.0,0.3]
[1659247755983,0.0150046,23724.0,23721.0,0.304317]
[1659247756202,0.0150046,23724.0,23720.0,0.335]
[1659247756203,0.0150046,23724.0,23722.0,0.304317]
[1659247756415,0.40725733,23725.0,23720.0,0.335]
[1659247756610,0.40725733,23725.0,23721.0,0.304317]
[1659247756845,0.40725733,23725.0,23722.0,0.02162287]
[1659247756953,0.40725733,23725.0,23720.0,0.335]
[1659247757181,0.40725733,23725.0,23722.0,0.304317]
[1659247757402,0.40725733,23725.0,23720.0,0.35]
[1659247757623,0.40725733,23725.0,23721.0,0.304317]
[1659247757836,0.48425733,23725.0,23722.0,0.04362287]
[1659247758072,0.48425733,23725.0,23722.0,0.022]
[1659247759097,0.48425733,23725.0,23723.0,0.02162287]
[1659247759333,0.48425733,23725.0,23723.0,0.02274096]
[1659247759334,0.40725733,23725.0,23723.0,0.02274096]
[1659247760023,0.48425733,23725.0,23723.0,0.022]
[1659247760259,0.48416799,23725.0,23723.0,0.04362287]
[1659247760474,0.48416799,23725.0,23723.0,0.04474096]
[1659247761128,0.40716799,23725.0,23723.0,0.02274096]
[1659247762056,0.48416799,23725.0,23723.0,0.04474096]
[1659247762263,0.48416799,23725.0,23723.0,0.022]
[1659247762518,0.01305029,23724.0,23723.0,0.022]
[1659247762752,0.48416799,23725.0,23723.0,0.326317]
[1659247762953,0.48416799,23725.0,23723.0,0.022]
[1659247763712,0.40716799,23725.0,23723.0,0.02162287]
[1659247763945,0.48416799,23725.0,23723.0,0.04362287]
[1659247764212,0.48416799,23725.0,23723.0,0.022]
[1659247764665,0.48416799,23725.0,23723.0,0.04362287]
[1659247765321,0.42217259,23725.0,23720.0,0.36266403]
[1659247765557,0.42217259,23725.0,23721.0,0.304317]
[1659247765771,0.42217259,23725.0,23722.0,0.32593987]
[1659247765993,0.48416799,23725.0,23723.0,0.022]
[1659247766213,0.49917259,23725.0,23723.0,0.022]
[1659247766873,0.48416799,23725.0,23723.0,0.022]
[1659247767338,0.3650046,23724.0,23720.0,0.36266403]
[1659247767565,0.35,23724.0,23721.0,0.32593987]
[1659247767783,0.35,23724.0,23722.0,0.304317]
[1659247768040,0.35,23724.0,23723.0,0.022]
[1659247768281,0.3650046,23724.0,23723.0,0.022]
[1659247768701,0.35,23724.0,23723.0,0.022]
[1659247769195,0.0150046,23724.0,23721.0,0.02162287]
[1659247769327,0.40716799,23725.0,23721.0,0.02162287]
[1659247770523,0.40716799,23725.0,23722.0,6.779e-05]
[1659247771036,0.42217259,23725.0,23722.0,6.779e-05]
[1659247771430,0.42217259,23725.0,23721.0,0.05662287]
[1659247771655,0.42217259,23725.0,23722.0,6.779e-05]
[1659247771868,0.49917259,23725.0,23722.0,0.02206779]
[1659247772292,0.49917259,23725.0,23722.0,6.779e-05]
[1659247772293,0.40716799,23725.0,23722.0,6.779e-05]
[1659247772990,0.40716799,23725.0,23722.0,0.30438479]
[1659247773397,0.0150046,23724.0,23722.0,0.30438479]
[1659247773639,0.40716799,23725.0,23722.0,0.30438479]
[1659247773857,0.40716799,23725.0,23722.0,6.779e-05]
[1659247774909,0.42217259,23725.0,23722.0,6.779e-05]
[1659247775334,0.40716799,23725.0,23722.0,6.779e-05]
[1659247776210,0.40716799,23725.0,23721.0,0.02162287]
[1659247776436,0.304317,23724.0,23719.0,0.55142173]
[1659247776700,0.98906799,23725.0,23719.0,0.55142173]
[1659247776933,1.06606799,23725.0,23722.0,0.022]
[1659247777152,0.0150046,23724.0,23722.0,0.022]
[1659247777396,1.06606799,23725.0,23722.0,0.04362287]
[1659247777619,1.06606799,23725.0,23722.0,0.022]
[1659247778070,0.0150046,23724.0,23719.0,0.55142173]
[1659247778274,0.0150046,23724.0,23720.0,0.304317]
[1659247778508,0.98906799,23725.0,23721.0,0.32593987]
[1659247778724,1.06806799,23725.0,23721.0,0.02162287]
[1659247779387,0.0150046,23724.0,23721.0,0.02162287]
[1659247780808,0.0150046,23724.0,23721.0,0.02174378]
[1659247781238,0.98906799,23725.0,23721.0,0.02174378]
[1659247781465,0.0150046,23724.0,23721.0,0.02174378]
[1659247781692,0.98906799,23725.0,23721.0,0.02174378]
[1659247781914,0.98906799,23725.0,23719.0,0.55142173]
[1659247782155,0.40725733,23724.0,23719.0,0.55142173]
[1659247782594,0.40725733,23724.0,23720.0,0.304317]
[1659247782825,0.40725733,23724.0,23721.0,0.32606078]
[1659247783038,0.40725733,23724.0,23721.0,0.02174378]
[1659247783257,0.40725733,23724.0,23721.0,0.04774378]
[1659247783675,0.0150046,23723.0,23721.0,0.026]
[1659247783902,0.47925733,23724.0,23721.0,0.04774378]
[1659247784124,0.47925733,23724.0,23721.0,0.026]
[1659247784381,0.07190413,23724.0,23721.0,0.026]
[1659247784628,0.2915669,23727.0,23722.0,0.304317]
[1659247784842,0.40725733,23726.0,23720.0,0.3]
[1659247785068,0.70725733,23726.0,23721.0,0.304317]
[1659247785298,0.40725733,23725.0,23720.0,0.35]
[1659247785759,0.40725733,23725.0,23720.0,0.3]
[1659247786201,0.40725733,23725.0,23721.0,0.304317]
[1659247786432,0.40725733,23725.0,23722.0,0.02162287]
[1659247786660,0.01305029,23724.0,23720.0,0.3]
[1659247786888,0.40725733,23725.0,23721.0,0.304317]
[1659247787168,0.40725733,23725.0,23720.0,0.35]
[1659247787389,0.40725733,23725.0,23721.0,0.304317]
[1659247787618,0.40725733,23725.0,23722.0,0.02162287]
[1659247788173,0.0150046,23724.0,23722.0,0.02162287]
[1659247788419,0.40725733,23725.0,23720.0,0.4149412]
[1659247788629,0.40725733,23725.0,23721.0,0.304317]
[1659247788846,0.40725733,23725.0,23722.0,0.0218529]
[1659247789432,0.48325733,23725.0,23722.0,0.0218529]
[1659247789878,0.49826193,23725.0,23722.0,0.0218529]
[1659247790311,0.48325733,23725.0,23721.0,0.023]
[1659247790748,0.40725733,23725.0,23722.0,0.0218529]
[1659247791443,0.48325733,23725.0,23722.0,0.0448529]
[1659247792138,0.0150046,23724.0,23722.0,0.023]
[1659247792360,0.48325733,23725.0,23722.0,0.0448529]
[1659247792799,0.40725733,23725.0,23722.0,0.0218529]
[1659247793521,0.49826193,23725.0,23722.0,0.0448529]
[1659247793753,0.49826193,23725.0,23722.0,0.023]
[1659247794901,0.42226193,23725.0,23720.0,0.6629412]
[1659247795116,0.40725733,23725.0,23721.0,0.304317]
[1659247795344,0.40725733,23725.0,23720.0,0.6629412]
[1659247795596,0.40725733,23725.0,23721.0,0.304317]
[1659247795866,0.40725733,23725.0,23720.0,0.0129412]
[1659247795867,0.0150046,23724.0,23720.0,0.0129412]
[1659247796099,0.40725733,23723.0,23720.0,0.0129412]
[1659247796328,0.40725733,23723.0,23722.0,0.023]
[1659247797496,0.40725733,23723.0,23722.0,0.089]
[1659247797945,0.40725733,23723.0,23722.0,0.11114805]
[1659247798156,0.40725733,23723.0,23722.0,0.02214805]